bitfinex-derivatives/quotes_SOLF0:USTF0_20240918
["timestamp","ask_amount","ask_price","bid_price","bid_amount"]
[1726658553708,6.48,129.61,129.57,9.48]
[1726658554009,14.83,129.63,129.57,3.79702506]
[1726658554207,14.83,129.63,129.55,14.83]
[1726658554408,14.83,129.63,129.55,18.73746431]
[1726658558320,14.83,129.61,129.55,3.90746431]
[1726658558506,14.83,129.61,129.54,4.4072]
[1726658558712,14.83,129.61,129.54,8.32633229]
[1726658559411,14.83,129.6,129.54,8.32633229]
[1726658561012,14.83,129.6,129.55,7.17288737]
[1726658561413,14.83,129.6,129.56,7.17288737]
[1726658562014,14.83,129.6,129.57,7.17288737]
[1726658562221,14.83,129.6,129.54,8.32633229]
[1726658562413,14.83,129.6,129.55,7.17303237]
[1726658562715,14.83,129.67,129.56,7.17303237]
[1726658563013,14.83,129.67,129.54,4.4072]
[1726658563014,14.83,129.62,129.57,7.17303237]
[1726658563217,14.83,129.62,129.58,7.17303237]
[1726658563419,14.83,129.62,129.54,8.26407889]
[1726658563609,14.83,129.62,129.55,7.17394338]
[1726658563814,14.83,129.62,129.54,23.09407889]
[1726658563815,14.83,129.62,129.56,7.17394338]
[1726658564012,14.83,129.62,129.57,7.17394338]
[1726658564320,14.83,129.62,129.58,7.17394338]
[1726658564518,14.83,129.62,129.54,23.09407889]
[1726658564709,14.83,129.62,129.55,7.1737267]
[1726658564910,14.83,129.62,129.56,7.1737267]
[1726658565120,14.83,129.62,129.54,23.09407889]
[1726658565620,14.83,129.62,129.55,7.17375901]
[1726658565920,14.83,129.62,129.56,7.17375901]
[1726658566120,14.83,129.62,129.57,7.17375901]
[1726658566318,14.83,129.62,129.58,7.17375901]
[1726658566621,14.83,129.62,129.54,23.09407889]
[1726658566815,14.83,129.62,129.55,7.17458103]
[1726658567018,14.83,129.62,129.56,7.17458103]
[1726658567217,14.83,129.62,129.57,7.17458103]
[1726658567421,14.83,129.62,129.58,7.17458103]
[1726658567721,14.83,129.62,129.54,23.09407889]
[1726658567919,14.83,129.62,129.55,7.17396511]
[1726658568121,14.83,129.62,129.56,7.17396511]
[1726658568419,14.83,129.62,129.54,23.09407889]
[1726658568624,14.83,129.62,129.57,7.17431097]
[1726658569024,14.83,129.6,129.54,8.26407889]
[1726658575927,9.5,129.58,129.54,17.76407889]
[1726658578325,9.5,129.58,129.55,7.17793573]
[1726658578524,9.5,129.58,129.54,17.76407889]
[1726658578719,9.5,129.58,129.55,7.17779393]
[1726658578922,9.5,129.58,129.54,17.76407889]
[1726658581323,9.5,129.58,129.55,7.17926018]
[1726658581626,9.5,129.58,129.54,17.76407889]
[1726658584334,9.5,129.6,129.56,9.5]
[1726658584831,9.5,129.6,129.57,7.18113894]
[1726658585033,9.5,129.6,129.58,7.18113894]
[1726658585227,9.5,129.6,129.59,7.18113894]
[1726658586723,9.5,129.6,129.56,9.5]
[1726658587022,9.5,129.6,129.57,7.17884445]
[1726658587223,9.5,129.6,129.56,9.5]
[1726658587725,9.5,129.6,129.58,7.18008322]
[1726658587926,9.5,129.6,129.59,7.18008322]
[1726658589330,9.5,129.6,129.56,9.5]
[1726658589629,9.5,129.6,129.57,7.18091783]
[1726658589929,9.5,129.6,129.58,14.36173614]
[1726658590231,8.06241421,129.69,129.59,7.18081831]
[1726658590424,8.06241421,129.69,129.6,7.18081831]
[1726658590619,8.06241421,129.69,129.56,9.5]
[1726658590620,8.06241421,129.69,129.61,7.18081831]
[1726658590821,8.06241421,129.69,129.61,11.08442111]
[1726658591020,8.06241421,129.69,129.61,3.9036028]
[1726658591222,8.06241421,129.69,129.56,9.5]
[1726658591633,9.5,129.59,129.56,9.5]
[1726658592336,9.5,129.6,129.56,9.5]
[1726658592726,8.06241421,129.69,129.56,9.5]
[1726658592927,5.73,129.62,129.57,7.1794083]
[1726658593127,5.73,129.62,129.58,9.5]
[1726658593930,9.5,129.61,129.59,7.17751769]
[1726658594132,9.5,129.61,129.56,9.5]
[1726658594336,9.5,129.61,129.57,7.17829914]
[1726658594533,9.5,129.61,129.58,7.17829914]
[1726658595028,9.5,129.61,129.56,9.5]
[1726658595237,9.5,129.61,129.57,7.17748125]
[1726658595428,9.5,129.62,129.58,7.17748125]
[1726658595733,9.5,129.62,129.59,7.17748125]
[1726658595933,9.5,129.62,129.58,3.86207417]
[1726658595934,9.5,129.62,129.56,9.5]
[1726658596129,9.5,129.62,129.57,7.1775036]
[1726658596332,9.5,129.62,129.58,7.1775036]
[1726658596525,9.5,129.62,129.59,7.1775036]
[1726658596727,9.5,129.62,129.56,13.28369758]
[1726658597031,9.5,129.62,129.58,9.5]
[1726658597234,9.5,129.62,129.58,13.30956571]
[1726658597736,9.5,129.62,129.59,7.17847352]
[1726658597937,9.5,129.62,129.58,13.30956571]
[1726658598134,9.5,129.62,129.59,7.17913103]
[1726658598333,9.5,129.62,129.58,13.30956571]
[1726658598533,9.5,129.62,129.59,7.18007581]
[1726658598731,9.5,129.62,129.58,13.30956571]
[1726658598931,9.5,129.62,129.59,7.18007266]
[1726658599132,9.5,129.62,129.58,9.5]
[1726658599133,6.5,129.62,129.58,9.5]
[1726658599333,6.5,129.62,129.59,7.18032881]
[1726658599637,6.5,129.62,129.6,7.18032881]
[1726658599935,6.5,129.62,129.61,7.18032881]
[1726658601430,9.5,129.62,129.61,7.18032881]
[1726658602736,6.5,129.62,129.61,7.18032881]
[1726658603136,6.5,129.62,129.61,11.11158873]
[1726658603537,6.5,129.62,129.61,3.93125992]
[1726658603739,6.5,129.62,129.61,7.18307982]
[1726658603935,6.5,129.62,129.61,10.94863109]
[1726658604242,9.5,129.62,129.61,10.94863109]
[1726658606437,9.5,129.62,129.61,3.76555127]
[1726658606642,9.5,129.62,129.59,9.5]
[1726658607135,15.69065787,129.71,129.59,13.29006184]
[1726658607336,9.5,129.63,129.59,13.29006184]
[1726658610441,9.5,129.63,129.59,3.79006184]
[1726658610744,9.5,129.6,129.54,4.4072]
[1726658610936,15.69056455,129.71,129.55,7.18746762]
[1726658610937,9.5,129.59,129.55,7.18746762]
[1726658611145,9.5,129.57,129.56,7.18746762]
[1726658611540,9.5,129.57,129.55,3.92015462]
[1726658611734,9.5,129.57,129.54,4.4072]
[1726658611939,9.5,129.56,129.54,2.9679]
[1726658612140,9.5,129.55,129.5,9.5]
[1726658612346,9.5,129.55,129.51,7.19387659]
[1726658612646,9.5,129.55,129.52,7.19387659]
[1726658612838,165.66453095,129.65,129.53,7.19387659]
[1726658612839,9.5,129.54,129.53,7.19387659]
[1726658614146,9.5,129.54,129.5,3.87267268]
[1726658614346,9.5,129.51,129.49,2.9336]
[1726658614643,9.5,129.51,129.49,6.88792331]
[1726658614843,9.5,129.5,129.49,3.95432331]
[1726658615045,9.5,129.5,129.45,9.5]
[1726658615242,9.5,129.49,129.46,19.02618857]
[1726658615436,9.5,129.49,129.45,13.33035244]
[1726658615748,9.5,129.5,129.45,9.5]
[1726658615951,9.5,129.5,129.46,2.8666]
[1726658616941,9.5,129.52,129.48,9.5]
[1726658617138,9.5,129.52,129.48,13.33260224]
[1726658621148,9.5,129.52,129.48,9.5]
[1726658621149,4.66,129.52,129.48,9.5]
[1726658621856,4.66,129.52,129.48,13.28198516]
[1726658624258,9.5,129.51,129.48,3.78198516]
[1726658624456,9.5,129.51,129.47,10.9141]
[1726658624957,9.5,129.51,129.47,14.69888377]
[1726658625954,8.06680614,129.63,129.48,9.5]
[1726658626158,9.5,129.52,129.49,7.04718485]
[1726658626459,9.5,129.52,129.48,9.5]
[1726658626656,9.5,129.52,129.49,7.04705794]
[1726658626957,9.5,129.52,129.48,9.5]
[1726658627156,4.27680614,129.63,129.51,9.5]
[1726658627355,9.5,129.55,129.51,9.5]
[1726658627655,9.5,129.54,129.51,3.81376078]
[1726658627957,9.5,129.54,129.5,9.5]
[1726658628147,9.5,129.54,129.51,7.04522746]
[1726658628354,9.5,129.54,129.51,3.90957809]
[1726658628553,9.5,129.54,129.5,9.5]
[1726658628748,9.5,129.54,129.51,7.04481708]
[1726658628948,9.5,129.54,129.52,7.04481708]
[1726658629149,9.5,129.54,129.53,7.04481708]
[1726658629960,9.5,129.54,129.5,13.34312414]
[1726658630259,9.5,129.54,129.53,7.04463795]
[1726658630455,9.5,129.54,129.51,7.04463795]
[1726658630662,9.5,129.54,129.52,7.04463795]
[1726658630863,9.5,129.54,129.53,7.04463795]
[1726658631470,5.72,129.54,129.53,7.04463795]
[1726658631667,5.72,129.54,129.53,10.99301451]
[1726658633664,5.72,129.54,129.47,10.9141]
[1726658633870,8.06531047,129.66,129.47,14.75044944]
[1726658633871,9.5,129.5,129.47,14.75044944]
[1726658634172,9.5,129.49,129.47,5.25044944]
[1726658634560,9.5,129.5,129.47,5.25044944]
[1726658638077,9.5,129.51,129.47,5.25044944]
[1726658640368,9.23108777,129.51,129.47,5.25044944]
[1726658640782,6.27946433,129.51,129.47,1.4141]
[1726658640980,9.5,129.52,129.48,9.5]
[1726658641176,9.5,129.53,129.49,9.5]
[1726658641376,9.5,129.54,129.5,9.5]
[1726658642075,9.5,129.54,129.5,13.28817489]
[1726658645481,9.5,129.55,129.51,9.5]
[1726658646283,9.5,129.54,129.5,9.5]
[1726658646482,9.5,129.54,129.51,2.8609]
[1726658646679,9.5,129.55,129.51,2.8609]
[1726658647284,9.5,129.55,129.51,6.81660692]
[1726658647485,9.5,129.54,129.51,6.81660692]
[1726658648586,9.5,129.53,129.51,6.81660692]
[1726658648778,165.66453095,129.65,129.51,3.95570692]
[1726658648779,9.5,129.52,129.51,3.95570692]
[1726658648978,9.5,129.52,129.47,1.4141]
[1726658649283,9.5,129.5,129.47,5.30028219]
[1726658649587,9.5,129.49,129.47,1.4141]
[1726658650084,9.5,129.49,129.47,5.27015076]
[1726658650283,9.5,129.5,129.47,1.4141]
[1726658650480,9.5,129.52,129.47,14.70679749]
[1726658650682,9.5,129.52,129.48,3.0002]
[1726658650986,9.5,129.52,129.48,6.77976328]
[1726658651180,9.5,129.52,129.48,3.0002]
[1726658651383,9.5,129.53,129.49,9.5]
[1726658651583,9.5,129.53,129.49,13.34871105]
[1726658652086,9.5,129.52,129.49,13.34871105]
[1726658652477,9.5,129.51,129.49,3.84871105]
[1726658652682,9.5,129.5,129.48,1.5229]
[1726658653686,9.5,129.5,129.48,5.38736167]
[1726658665288,9.5,129.49,129.48,3.86446167]
[1726658665595,9.5,129.49,129.44,11.0088]
[1726658665793,9.5,129.49,129.44,14.80981707]
[1726658666103,9.5,129.47,129.44,14.80981707]
[1726658666402,9.5,129.46,129.44,5.30981707]
[1726658670391,9.5,129.48,129.44,5.30981707]
[1726658670596,9.5,129.48,129.44,14.80981707]
[1726658674005,9.5,129.48,129.44,5.30981707]
[1726658676301,9.5,129.48,129.45,18.52679328]
[1726658676503,9.5,129.48,129.44,5.30981707]
[1726658676710,9.5,129.48,129.45,39.19284196]
[1726658676905,9.5,129.48,129.44,5.30981707]
[1726658677107,9.5,129.48,129.45,39.19286197]
[1726658677308,9.5,129.48,129.44,5.30981707]
[1726658677507,9.5,129.47,129.45,39.19271352]
[1726658677707,9.5,129.47,129.44,5.30981707]
[1726658677907,9.5,129.47,129.45,39.19336085]
[1726658678109,9.5,129.47,129.44,5.30981707]
[1726658678311,9.5,129.47,129.45,39.18845275]
[1726658678513,9.5,129.47,129.46,18.52470079]
[1726658678814,165.66453095,129.58,129.46,18.52470079]
[1726658679003,9.5,129.47,129.46,18.52470079]
[1726658679316,9.5,129.47,129.46,39.18839049]
[1726658680111,9.5,129.47,129.44,5.30981707]
[1726658680413,9.5,129.47,129.45,39.20048402]
[1726658680602,9.5,129.47,129.44,5.30981707]
[1726658680809,9.5,129.47,129.45,39.19780961]
[1726658681009,9.5,129.46,129.44,5.30981707]
[1726658682208,9.5,129.45,129.44,3.80101707]
[1726658682417,9.5,129.45,129.4,10.8957]
[1726658682612,9.5,129.44,129.4,10.8957]
[1726658684115,9.5,129.45,129.41,9.5]
[1726658684816,6.96,129.45,129.41,9.5]
[1726658685216,6.96,129.45,129.41,13.34151762]
[1726658685713,6.96,129.45,129.41,3.84151762]
[1726658685919,165.66453095,129.58,129.4,10.8957]
[1726658685920,9.5,129.44,129.4,10.8957]
[1726658686419,9.5,129.44,129.4,14.77509555]
[1726658687312,9.5,129.44,129.4,5.27509555]
[1726658688215,173.7357962,129.58,129.4,5.27509555]
[1726658688613,9.5,129.44,129.4,5.27509555]
[1726658689115,9.5,129.44,129.4,14.77509555]
[1726658689418,9.5,129.44,129.41,39.20847355]
[1726658689612,9.5,129.44,129.42,20.67448374]
[1726658689819,9.5,129.44,129.43,18.53398981]
[1726658690017,9.5,129.44,129.4,14.77509555]
[1726658690314,9.5,129.44,129.41,18.534374]
[1726658690512,9.5,129.44,129.42,20.67490026]
[1726658690820,9.5,129.44,129.4,14.77509555]
[1726658691010,9.5,129.44,129.41,39.20892816]
[1726658691210,9.5,129.44,129.42,39.20892816]
[1726658691419,9.5,129.44,129.4,14.77509555]
[1726658691619,9.5,129.44,129.41,39.20920677]
[1726658691917,9.5,129.44,129.42,39.20920677]
[1726658692126,9.5,129.44,129.4,14.77509555]
[1726658692417,9.5,129.44,129.41,39.20947489]
[1726658692609,173.7357962,129.58,129.42,39.20947489]
[1726658692814,9.5,129.43,129.4,14.77509555]
[1726658693020,9.5,129.43,129.41,39.20951441]
[1726658693314,9.5,129.43,129.4,14.77509555]
[1726658693315,9.5,129.43,129.42,39.20951441]
[1726658694023,9.5,129.43,129.42,18.53448563]
[1726658696312,9.5,129.43,129.4,14.77509555]
[1726658700524,8.69283292,129.43,129.4,14.77509555]
[1726658701119,165.66453095,129.54,129.4,14.77509555]
[1726658701426,4.18167087,129.57,129.42,9.5]
[1726658701621,9.5,129.46,129.43,9.5]
[1726658702134,165.66453095,129.59,129.43,9.5]
[1726658702423,9.5,129.47,129.43,11.0277]
[1726658702628,9.5,129.47,129.43,14.80873375]
[1726658703625,165.66453095,129.57,129.44,9.5]
[1726658703820,9.5,129.48,129.44,9.5]
[1726658704325,9.5,129.48,129.45,18.51805205]
[1726658704527,165.66453095,129.63,129.45,9.5]
[1726658704720,9.5,129.5,129.46,18.51526727]
[1726658704927,9.5,129.5,129.46,3.91473564]
[1726658705127,9.5,129.49,129.45,9.5]
[1726658705327,9.5,129.49,129.46,18.51467057]
[1726658705533,9.5,129.49,129.46,3.88072806]
[1726658705830,9.5,129.49,129.45,9.5]
[1726658706223,9.5,129.49,129.45,13.33821859]
[1726658707121,9.5,129.47,129.45,3.83821859]
[1726658707325,9.5,129.47,129.43,11.0277]
[1726658707626,9.5,129.47,129.44,39.1689733]
[1726658707821,165.66453095,129.63,129.45,18.51515079]
[1726658707822,9.5,129.46,129.45,18.51515079]
[1726658710934,9.5,129.48,129.45,18.51515079]
[1726658711130,9.5,129.48,129.43,11.0277]
[1726658711331,9.5,129.48,129.44,39.1592104]
[1726658711643,9.5,129.48,129.45,18.51086961]
[1726658711940,9.5,129.48,129.44,3.77234163]
[1726658712133,165.66453095,129.63,129.44,9.5]
[1726658712441,165.66453095,129.63,129.43,1.5277]
[1726658712442,27.03158083,129.62,129.46,9.5]
[1726658712641,9.5,129.5,129.46,9.5]
[1726658713341,9.5,129.49,129.45,9.5]
[1726658713743,9.5,129.48,129.45,9.5]
[1726658713943,12.94977201,129.61,129.45,9.5]
[1726658714132,9.5,129.48,129.45,9.5]
[1726658714331,12.94977201,129.61,129.45,9.5]
[1726658714536,9.5,129.5,129.45,9.5]
[1726658714941,9.5,129.5,129.46,9.5]
[1726658715846,9.5,129.49,129.45,9.5]
[1726658717443,9.5,129.5,129.46,9.5]
[1726658719040,12.94977201,129.62,129.46,9.5]
[1726658719247,9.5,129.52,129.47,9.5]
[1726658719639,6.5,129.52,129.47,9.5]
[1726658720043,6.5,129.52,129.47,13.32826495]
[1726658721243,6.5,129.52,129.48,9.5]
[1726658722055,6.5,129.52,129.48,13.40910746]
[1726658722349,12.94887999,129.62,129.48,9.5]
[1726658722552,337.0,129.64,129.52,9.5]
[1726658722744,337.0,129.64,129.53,9.5]
[1726658722955,9.5,129.57,129.53,9.5]
[1726658723955,9.5,129.57,129.53,13.31422348]
[1726658726551,337.0,129.64,129.53,13.31422348]
[1726658726756,9.5,129.57,129.53,13.31422348]
[1726658728865,165.66453095,129.68,129.53,9.5]
[1726658729061,9.5,129.57,129.53,13.27328922]
[1726658730366,502.66453095,129.73,129.53,13.27328922]
[1726658730560,9.5,129.57,129.53,13.27328922]
[1726658732163,337.0,129.71,129.52,9.5]
[1726658732164,6.5,129.56,129.52,9.5]
[1726658732357,337.0,129.71,129.52,9.5]
[1726658732664,9.5,129.56,129.52,9.5]
[1726658732866,9.5,129.55,129.52,9.5]
[1726658734262,9.5,129.56,129.52,9.5]
[1726658736458,12.80869193,129.66,129.54,9.5]
[1726658736659,9.5,129.6,129.56,9.5]
[1726658736964,9.5,129.6,129.57,9.5]
[1726658737770,9.5,129.6,129.56,9.5]
[1726658739059,5.7,129.6,129.55,2.8421]
[1726658739261,43.09529507,129.71,129.57,9.5]
[1726658739461,29.02087976,129.71,129.58,9.5]
[1726658739660,337.0,129.76,129.58,9.5]
[1726658739661,9.5,129.62,129.58,9.5]
[1726658740170,9.5,129.62,129.57,13.28698513]
[1726658740670,9.5,129.61,129.57,3.78698513]
[1726658740970,9.5,129.58,129.55,4.3711]
[1726658741165,9.5,129.56,129.55,3.88485357]
[1726658741365,9.5,129.56,129.51,9.5]
[1726658742073,9.5,129.56,129.51,13.34778878]
[1726658743175,9.5,129.57,129.53,9.5]
[1726658743968,9.5,129.57,129.53,13.2841882]
[1726658744574,5.73,129.57,129.53,9.5]
[1726658745072,165.66453095,129.68,129.55,9.5]
[1726658745267,9.5,129.6,129.55,9.5]
[1726658745866,9.5,129.6,129.55,13.43672972]
[1726658746777,9.5,129.59,129.55,13.43672972]
[1726658748875,9.5,129.59,129.55,3.93672972]
[1726658749079,9.5,129.59,129.54,9.5]
[1726658749673,9.5,129.59,129.54,13.45255399]
[1726658752377,9.5,129.6,129.55,9.5]
[1726658755385,9.5,129.59,129.55,9.5]
[1726658755580,9.5,129.58,129.54,13.45255399]
[1726658755782,9.5,129.58,129.53,11.0166]
[1726658756086,8.06247647,129.72,129.53,5.43178189]
[1726658756087,9.5,129.57,129.53,5.43178189]
[1726658756681,9.5,129.56,129.53,3.91518189]
[1726658756976,9.5,129.56,129.52,12.5514]
[1726658757487,9.5,129.56,129.52,16.43800956]
[1726658759395,9.5,129.57,129.52,16.43800956]
[1726658761393,9.5,129.57,129.52,6.93800956]
[1726658761594,9.5,129.57,129.52,16.43800956]
[1726658761799,9.5,129.56,129.52,6.93800956]
[1726658762097,165.66453095,129.67,129.52,3.88660956]
[1726658762098,9.5,129.54,129.52,3.88660956]
[1726658762301,165.66453095,129.67,129.52,9.5]
[1726658762495,9.5,129.57,129.52,13.44801019]
[1726658762801,9.5,129.58,129.54,9.5]
[1726658763699,9.5,129.58,129.54,13.43818478]
[1726658765302,9.5,129.56,129.54,3.93818478]
[1726658765499,9.5,129.56,129.53,9.5]
[1726658766004,9.5,129.56,129.53,13.36635674]
[1726658771004,8.06316143,129.7,129.53,13.36635674]
[1726658771005,9.5,129.58,129.53,13.36635674]
[1726658771505,9.5,129.58,129.54,9.5]
[1726658771900,6.5,129.59,129.45,2.9148]
[1726658772105,165.66453095,129.66,129.55,9.5]
[1726658772408,9.5,129.59,129.55,13.27173557]
[1726658772900,9.5,129.61,129.56,9.5]
[1726658773806,43.25472017,129.7,129.56,9.5]
[1726658774011,9.5,129.61,129.56,9.5]
[1726658775711,8.06213403,129.72,129.58,9.5]
[1726658776011,9.5,129.63,129.59,9.5]
[1726658777615,9.5,129.62,129.59,9.5]
[1726658777805,9.5,129.62,129.58,13.42693088]
[1726658778914,43.24466744,129.72,129.58,13.42693088]
[1726658779112,9.5,129.62,129.58,13.42693088]
[1726658780509,9.5,129.62,129.58,3.92693088]
[1726658780705,9.5,129.59,129.58,3.92693088]
[1726658782811,43.25043838,129.75,129.57,9.5]
[1726658783106,9.5,129.62,129.57,9.5]
[1726658783514,9.5,129.62,129.57,13.26613296]
[1726658789313,6.5,129.62,129.57,9.5]
[1726658789715,6.5,129.62,129.57,13.34663051]
[1726658793729,9.5,129.61,129.57,3.84663051]
[1726658793927,9.5,129.61,129.56,12.5696]
[1726658794426,9.5,129.61,129.56,16.36411471]
[1726658795926,9.5,129.61,129.57,9.5]
[1726658805030,9.5,129.59,129.56,16.36411471]
[1726658805335,9.5,129.59,129.56,6.86411471]
[1726658805933,9.5,129.58,129.56,6.86411471]
[1726658806231,9.5,129.57,129.56,3.79451471]
[1726658806440,9.5,129.57,129.51,2.9602]
[1726658806732,9.5,129.55,129.51,6.85693725]
[1726658806933,9.5,129.55,129.52,9.5]
[1726658807135,9.5,129.55,129.52,13.43534939]
[1726658809733,9.5,129.55,129.52,3.93534939]
[1726658809934,9.5,129.55,129.51,2.9602]
[1726658809935,9.5,129.56,129.51,2.9602]
[1726658810240,9.5,129.56,129.52,9.5]
[1726658810437,9.5,129.56,129.52,13.31654051]
[1726658810633,9.5,129.56,129.52,3.81654051]
[1726658810938,9.5,129.56,129.51,2.9602]
[1726658811138,9.5,129.56,129.53,9.5]
[1726658811341,9.5,129.56,129.53,13.32967037]
[1726658811738,173.72613582,129.72,129.53,13.32967037]
[1726658811739,9.5,129.57,129.53,13.32967037]
[1726658812742,173.72613582,129.72,129.54,9.5]
[1726658813042,9.5,129.57,129.54,9.5]
[1726658813639,9.5,129.57,129.53,9.5]
[1726658813839,9.5,129.57,129.53,13.4535601]
[1726658821546,9.5,129.6,129.56,9.5]
[1726658821746,9.5,129.6,129.56,13.43672972]
[1726658821942,158.05453095,129.68,129.57,9.5]
[1726658822146,9.5,129.61,129.57,9.5]
[1726658823147,8.06306802,129.71,129.57,9.5]
[1726658823353,9.5,129.61,129.57,9.5]
[1726658823945,6.5,129.61,129.57,9.5]
[1726658824141,6.5,129.61,129.57,3.79924926]
[1726658824348,9.5,129.62,129.58,9.5]
[1726658825852,9.5,129.61,129.58,9.5]
[1726658826948,154.48,129.69,129.58,9.5]
[1726658827155,9.5,129.61,129.58,9.5]
[1726658828356,154.48,129.69,129.52,3.79809072]
[1726658828655,9.5,129.6,129.56,9.5]
[1726658828854,9.5,129.6,129.56,13.35001656]
[1726658829852,9.5,129.61,129.57,9.5]
[1726658830449,9.5,129.61,129.56,3.85001656]
[1726658830744,9.5,129.61,129.57,9.5]
[1726658837449,154.48,129.69,129.57,9.5]
[1726658837647,9.5,129.61,129.58,9.5]
[1726658842064,9.5,129.61,129.57,9.5]
[1726658842266,9.5,129.6,129.57,9.5]
[1726658842763,9.5,129.6,129.57,13.4048458]
[1726658844461,9.5,129.6,129.57,3.9048458]
[1726658844758,12.80369573,129.68,129.54,9.5]
[1726658844759,9.5,129.59,129.54,9.5]
[1726658844958,9.5,129.59,129.54,13.34036553]
[1726658845163,9.5,129.59,129.55,9.5]
[1726658845859,9.5,129.59,129.55,13.27434538]
[1726658847969,9.5,129.6,129.55,13.27434538]
[1726658849561,12.80418262,129.68,129.56,9.5]
[1726658849771,7.6,129.61,129.57,9.5]
[1726658852268,4.6,129.61,129.57,9.5]
[1726658852669,4.6,129.61,129.57,13.45202432]
[1726658858273,154.46,129.69,129.57,13.45202432]
[1726658858469,9.5,129.63,129.58,9.5]
[1726658859278,9.5,129.63,129.58,13.37018209]
[1726658859481,6.5,129.63,129.59,9.5]
[1726658859685,9.5,129.64,129.59,9.5]
[1726658860287,9.5,129.64,129.6,9.5]
[1726658860989,154.46,129.69,129.6,9.5]
[1726658860990,9.5,129.65,129.6,9.5]
[1726658861489,9.5,129.65,129.6,13.30520931]
[1726658862482,151.46,129.69,129.61,9.5]
[1726658862682,9.5,129.66,129.61,13.31524536]
[1726658865285,9.5,129.65,129.61,13.31524536]
[1726658865989,150.52,129.73,129.61,9.5]
[1726658866295,9.5,129.65,129.61,13.27085511]
[1726658880699,12.80045445,129.72,129.61,13.27085511]
[1726658880907,9.5,129.65,129.62,9.5]
[1726658881601,9.5,129.65,129.62,13.3902123]
[1726658884706,9.5,129.65,129.62,3.8902123]
[1726658884904,9.5,129.65,129.61,9.5]
[1726658885102,9.5,129.65,129.61,3.88952918]
[1726658885307,9.5,129.65,129.6,1.3906]
[1726658885508,9.5,129.65,129.61,9.5]
[1726658885715,9.5,129.65,129.61,13.44549085]
[1726658887213,154.4,129.72,129.61,13.44549085]
[1726658887406,9.5,129.66,129.61,13.44549085]
[1726658888715,9.5,129.65,129.61,13.44549085]
[1726658890006,154.4,129.73,129.62,9.5]
[1726658890307,9.5,129.66,129.62,9.5]
[1726658891505,154.4,129.73,129.62,9.5]
[1726658891710,9.5,129.66,129.62,9.5]
[1726658894009,9.5,129.66,129.61,13.44549085]
[1726658894208,9.5,129.66,129.61,9.5]
[1726658894813,9.5,129.66,129.61,13.38210769]
[1726658897407,9.5,129.66,129.62,9.5]
[1726658899709,12.80051076,129.71,129.62,9.5]
[1726658900011,9.5,129.66,129.62,9.5]
[1726658905018,9.5,129.65,129.62,9.5]
[1726658905519,9.5,129.65,129.61,3.88210769]
[1726658905716,12.80017949,129.71,129.59,2.94]
[1726658905918,9.5,129.62,129.59,6.81760447]
[1726658906121,9.5,129.62,129.59,2.94]
[1726658906429,9.5,129.6,129.59,3.90848942]
[1726658906719,9.5,129.6,129.56,9.5]